fUST/lending_fUST_20241228
["ID","MTS","AMOUNT","RATE_DAILY","PERIOD"]
[346901558,1735352975850,-500.0,9.342e-05,2]
[346901559,1735352975872,-504.28619686,9.342e-05,2]
[346901560,1735352975893,-500.0,9.342e-05,2]
[346901561,1735352975914,-500.0,9.342e-05,2]
[346901562,1735352975935,-500.0,9.342e-05,2]
[346901563,1735352975955,-502.39498162,9.342e-05,2]
[346901564,1735352975975,-500.0,9.342e-05,2]
[346901565,1735352975996,-500.0,9.342e-05,2]
[346901566,1735352976019,-500.0,9.342e-05,2]
[346901567,1735352976040,-500.0,9.342e-05,2]
[346901568,1735352976061,-500.0,9.342e-05,2]
[346901569,1735352976082,-500.0,9.342e-05,2]
[346901570,1735352976103,-500.0,9.342e-05,2]
[346901571,1735352976123,-500.0,9.342e-05,2]
[346901572,1735352976143,-507.38214763,9.342e-05,2]
[346901573,1735352976165,-500.0,9.342e-05,2]
[346901574,1735352976187,-362.92528909,9.342e-05,2]
[346901575,1735352976207,-515.90307424,9.342e-05,2]
[346901576,1735352976228,-500.0,9.342e-05,2]
[346901577,1735352976249,-500.0,9.342e-05,2]
[346901578,1735352976269,-504.48627528,9.342e-05,2]
[346901579,1735352976290,-504.47746663,9.342e-05,2]
[346901580,1735352976312,-500.0,9.342e-05,2]
[346901581,1735352976333,-500.0,9.342e-05,2]
[346901582,1735352976353,-507.87255704,9.342e-05,2]
[346901583,1735352976375,-500.0,9.342e-05,2]
[346901584,1735352976396,-500.0,9.342e-05,2]
[346901585,1735352976418,-500.0,9.342e-05,2]
[346901586,1735352976440,-507.43454958,9.342e-05,2]
[346901587,1735352976471,-506.58450175,9.342e-05,2]
[346901588,1735352976492,-501.90287019,9.342e-05,2]
[346901589,1735352976514,-502.69920343,9.342e-05,2]
[346901590,1735352976535,-502.16525915,9.342e-05,2]
[346901591,1735352976557,-505.17298432,9.342e-05,2]
[346901592,1735352976579,-502.80990595,9.342e-05,2]
[346901593,1735352976601,-511.17695848,9.342e-05,2]
[346901594,1735352976622,-500.0,9.342e-05,2]
[346901595,1735352976643,-508.61412482,9.342e-05,2]
[346901596,1735352976723,-547.29662441,9.342e-05,2]
[346901597,1735352976753,-500.0,9.342e-05,2]
[346901598,1735352976774,-502.82435746,9.342e-05,2]
[346901599,1735352976796,-575.5787479,9.342e-05,2]
[346901600,1735352976816,-502.72864842,9.342e-05,2]
[346901601,1735352976836,-506.74452589,9.342e-05,2]
[346901602,1735352976857,-322.02940684,9.342e-05,2]
[346901603,1735352976877,-506.13517466,9.342e-05,2]
[346901604,1735352976898,-505.03509409,9.342e-05,2]
[346901605,1735352976919,-279.36674867,9.342e-05,2]
[346901606,1735352976939,-500.0,9.342e-05,2]
[346901607,1735352976962,-502.53959061,9.342e-05,2]
[346901608,1735352976982,-504.1489081,9.342e-05,2]
[346901609,1735352977002,-503.84483523,9.342e-05,2]
[346901610,1735352977025,-500.0,9.342e-05,2]
[346901611,1735352977046,-507.2353062,9.342e-05,2]
[346901612,1735352977067,-500.0,9.342e-05,2]
[346901613,1735352977088,-503.59880027,9.342e-05,2]
[346901614,1735352977113,-500.0,9.342e-05,2]
[346901615,1735352977136,-500.0,9.342e-05,2]
[346901616,1735352977160,-511.59884193,9.342e-05,2]
[346901617,1735352977184,-500.0,9.342e-05,2]
[346901618,1735352977206,-500.0,9.342e-05,2]
[346901619,1735352977228,-509.08434343,9.342e-05,2]
[346901620,1735352977249,-500.0,9.342e-05,2]
[346901621,1735352977272,-505.73142454,9.342e-05,2]
[346901622,1735352977295,-500.0,9.342e-05,2]
[346901623,1735352977317,-505.07230638,9.342e-05,2]
[346901624,1735352977338,-501.75859607,9.342e-05,2]
[346901625,1735352977358,-500.0,9.342e-05,2]
[346901626,1735352977379,-500.0,9.342e-05,2]
[346901627,1735352977401,-500.0,9.342e-05,2]
[346901628,1735352977424,-508.06145039,9.342e-05,2]
[346901629,1735352977457,-505.77323593,9.342e-05,2]
[346901630,1735352977491,-502.75300397,9.342e-05,2]
[346901631,1735352977525,-504.05782668,9.342e-05,2]
[346901632,1735352977560,-505.58864142,9.342e-05,2]
[346901633,1735352977598,-151.0,9.342e-05,2]
[346901634,1735352977631,-500.0,9.342e-05,2]
[346901635,1735352977663,-151.0,9.342e-05,2]
[346901636,1735352977695,-500.92420875,9.342e-05,2]
[346901637,1735352977729,-500.0,9.342e-05,2]
[346901638,1735352977764,-505.67765727,9.342e-05,2]
[346901639,1735352977790,-514.38151383,9.342e-05,2]
[346901640,1735352977823,-500.0,9.342e-05,2]
[346901641,1735352977853,-503.77502135,9.342e-05,2]
[346901642,1735352977880,-500.0,9.342e-05,2]
[346901643,1735352977907,-568.12362289,9.342e-05,2]
[346901644,1735352977937,-501.33202148,9.342e-05,2]
[346901645,1735352977969,-505.84697742,9.342e-05,2]
[346901646,1735352977999,-503.35707306,9.342e-05,2]
[346901647,1735352978030,-500.0,9.342e-05,2]
[346901648,1735352978059,-504.51332475,9.342e-05,2]
[346901649,1735352978087,-500.0,9.342e-05,2]
[346901650,1735352978115,-500.0,9.342e-05,2]
[346901651,1735352978144,-500.0,9.342e-05,2]
[346901652,1735352978172,-500.0,9.342e-05,2]
[346901653,1735352978201,-500.0,9.342e-05,2]
[346901654,1735352978223,-505.37058005,9.342e-05,2]
[346901655,1735352978245,-202.44632916,9.342e-05,2]
[346901656,1735352978268,-500.0,9.342e-05,2]
[346901657,1735352978289,-501.8643643,9.342e-05,2]
[346901658,1735352978311,-503.47725766,9.342e-05,2]
[346901659,1735352978333,-500.0,9.342e-05,2]
[346901660,1735352978354,-500.0,9.342e-05,2]
[346901661,1735352978514,-504.84278697,9.342e-05,2]
[346901662,1735352978545,-507.68154132,9.342e-05,2]
[346901663,1735352978566,-504.62763379,9.342e-05,2]
[346901664,1735352978589,-517.95857859,9.342e-05,2]
[346901665,1735352978612,-500.0,9.342e-05,2]
[346901666,1735352978635,-500.0,9.342e-05,2]
[346901667,1735352978657,-500.0,9.342e-05,2]
[346901668,1735352978679,-500.0,9.342e-05,2]
[346901669,1735352978700,-500.0,9.342e-05,2]
[346901670,1735352978722,-500.0,9.342e-05,2]
[346901671,1735352978743,-500.0,9.342e-05,2]
[346901672,1735352978765,-500.0,9.342e-05,2]
[346901673,1735352978787,-500.0,9.342e-05,2]
[346901674,1735352978807,-501.59213546,9.343e-05,2]
[346901675,1735352978829,-501.52287525,9.343e-05,2]
[346901676,1735352978850,-504.79535705,9.343e-05,2]
[346901677,1735352978871,-515.02367169,9.343e-05,2]
[346901678,1735352978892,-503.93510783,9.343e-05,2]
[346901679,1735352978915,-506.97249949,9.343e-05,2]
[346901680,1735352978936,-313.22,9.343e-05,2]
[346901681,1735352978958,-500.0,9.343e-05,2]
[346901682,1735352978986,-502.93404655,9.343e-05,2]
[346901683,1735352979011,-500.0,9.343e-05,2]
[346901684,1735352979038,-632.09394529,9.343e-05,2]
[346901685,1735352979061,-500.0,9.343e-05,2]
[346901686,1735352979084,-500.0,9.343e-05,2]
[346901687,1735352979106,-500.0,9.343e-05,2]
[346901688,1735352979129,-1000.0,9.343e-05,2]
[346901689,1735352979150,-503.62999153,9.343e-05,2]
[346901690,1735352979171,-503.84527599,9.343e-05,2]
[346901691,1735352979193,-500.0,9.343e-05,2]
[346901692,1735352979216,-500.0,9.343e-05,2]
[346901693,1735352979238,-505.04623925,9.343e-05,2]
[346901694,1735352979261,-500.0,9.613e-05,2]
[346901695,1735352979283,-500.0,9.613e-05,2]
[346901696,1735352979306,-500.0,9.613e-05,2]
[346901697,1735352979329,-500.0,9.613e-05,2]
[346901698,1735352979351,-500.0,9.613e-05,2]
[346901699,1735352979372,-508.01365614,9.613e-05,2]
[346901700,1735352979395,-500.0,9.613e-05,2]
[346901701,1735352979418,-616.50877375,9.613e-05,2]
[346901702,1735352979439,-505.33100736,9.613e-05,2]
[346901703,1735352979463,-500.0,9.613e-05,2]
[346901704,1735352979485,-500.0,9.613e-05,2]
[346901705,1735352979507,-500.0,9.613e-05,2]
[346901706,1735352979530,-505.40999775,9.613e-05,2]
[346901707,1735352979553,-500.0,9.613e-05,2]
[346901708,1735352979577,-500.0,9.613e-05,2]
[346901709,1735352979600,-500.0,9.613e-05,2]
[346901710,1735352979622,-500.0,9.613e-05,2]
[346901711,1735352979645,-504.4433034,9.613e-05,2]
[346901712,1735352979669,-500.0,9.613e-05,2]
[346901713,1735352979692,-502.38163468,9.614e-05,2]
[346901714,1735352979715,-612.870735,9.614e-05,2]
[346901715,1735352979738,-502.48255717,9.614e-05,2]
[346901716,1735352979760,-500.0,9.614e-05,2]
[346901717,1735352979781,-500.0,9.614e-05,2]
[346901718,1735352979802,-541.40764967,9.614e-05,2]
[346901719,1735352979825,-500.0,9.614e-05,2]
[346901720,1735352979848,-500.0,9.614e-05,2]
[346901721,1735352979872,-500.0,9.614e-05,2]
[346901722,1735352979895,-500.0,9.614e-05,2]
[346901723,1735352979917,-234.47425565,9.614e-05,2]
[346901724,1735352992635,35019.0,0.00022,120]
[346901725,1735353001915,-500.0,9.065e-05,2]
[346901726,1735353001941,-500.0,9.065e-05,2]
[346901727,1735353001967,-337.99373181,9.065e-05,2]
[346901728,1735353001997,-162.00626819,9.065e-05,2]
[346901729,1735353002024,-500.0,9.065e-05,2]
[346901730,1735353002053,-500.0,9.065e-05,2]
[346901731,1735353002081,-175.98746362,9.066e-05,2]
[346901732,1735353002112,-324.01253638,9.066e-05,2]
[346901733,1735353002138,-500.0,9.066e-05,2]
[346901734,1735353002162,-121.66927251,9.066e-05,2]
[346901774,1735353032493,-300.0,9.064e-05,2]
[346901775,1735353032506,-500.0,9.064e-05,2]
[346901776,1735353032516,-500.0,9.065e-05,2]
[346901777,1735353032525,-500.0,9.065e-05,2]
[346901779,1735353032534,-500.0,9.065e-05,2]
[346901781,1735353032544,-500.0,9.065e-05,2]
[346901783,1735353032553,-378.33072749,9.066e-05,2]
[346901785,1735353032563,-500.0,9.066e-05,2]
[346901787,1735353032572,-500.0,9.066e-05,2]
[346901789,1735353032582,-22.4448687,9.066e-05,2]
[346901792,1735353032602,-597.4051313,9.066e-05,2]
[346901794,1735353032611,-52.42270541,9.066e-05,2]
[346901796,1735353032622,-507.87729459,9.066e-05,2]
[346901798,1735353032632,-500.0,9.066e-05,2]
[346901800,1735353032642,-500.0,9.066e-05,2]
[346901803,1735353032652,-500.0,9.066e-05,2]
[346901804,1735353032661,-500.0,9.066e-05,2]
[346901807,1735353032671,-500.0,9.066e-05,2]
[346901809,1735353032680,-500.0,9.066e-05,2]
[346901811,1735353032690,-500.0,9.066e-05,2]
[346901812,1735353032699,-500.0,9.067e-05,2]
[346901815,1735353032709,-500.0,9.067e-05,2]
[346901816,1735353032718,-500.0,9.067e-05,2]
[346901818,1735353032728,-493.28256153,9.067e-05,2]
[346901820,1735353032738,-500.0,9.068e-05,2]
[346901822,1735353032747,-500.0,9.068e-05,2]
[346901825,1735353032757,-623.51,9.068e-05,2]
[346901826,1735353032767,-500.0,9.068e-05,2]
[346901838,1735353032872,-500.0,9.068e-05,2]
[346901840,1735353032881,-500.0,9.068e-05,2]
[346901842,1735353032891,-500.0,9.068e-05,2]
[346901844,1735353032900,-222.33115818,9.068e-05,2]
[346902073,1735353038357,-500.0,9.065e-05,2]
[346902075,1735353038366,-500.0,9.065e-05,2]
[346902077,1735353038375,-500.0,9.067e-05,2]
[346902079,1735353038384,-277.66884182,9.068e-05,2]
[346902081,1735353038393,-500.0,9.068e-05,2]
[346902083,1735353038403,-500.0,9.068e-05,2]
[346902085,1735353038412,-500.0,9.068e-05,2]
[346902087,1735353038422,-151.0,9.069e-05,2]
[346902089,1735353038431,-500.0,9.339e-05,2]
[346902090,1735353038440,-500.0,9.339e-05,2]
[346902092,1735353038449,-500.0,9.339e-05,2]
[346902094,1735353038459,-500.0,9.339e-05,2]
[346902096,1735353038469,-287.54743147,9.339e-05,2]
[346902098,1735353038478,-500.0,9.339e-05,2]
[346902100,1735353038487,-243.8832354,9.339e-05,2]
[346902102,1735353038499,-256.1167646,9.339e-05,2]
[346902104,1735353038508,-58.6232354,9.339e-05,2]
[346902139,1735353041153,-441.3767646,9.339e-05,2]
[346902140,1735353041163,-300.58959011,9.339e-05,2]
[346902141,1735353041175,-199.41040989,9.339e-05,2]
[346902142,1735353041185,-500.0,9.339e-05,2]
[346902143,1735353041194,-500.0,9.34e-05,2]
[346902144,1735353041203,-500.0,9.34e-05,2]
[346902145,1735353041213,-500.0,9.34e-05,2]
[346902146,1735353041222,-500.0,9.34e-05,2]
[346902147,1735353041232,-500.0,9.34e-05,2]
[346902148,1735353041241,-577.77,9.34e-05,2]
[346902149,1735353041251,-500.0,9.34e-05,2]
[346902150,1735353041261,-500.0,9.34e-05,2]
[346902151,1735353041270,-500.0,9.34e-05,2]
[346902152,1735353041281,-154.378035,9.34e-05,2]
[346902153,1735353041290,-500.0,9.34e-05,2]
[346902154,1735353041300,-500.0,9.34e-05,2]
[346902155,1735353041309,-501.68920316,9.341e-05,2]
[346902156,1735353041319,-643.97156963,9.341e-05,2]
[346902157,1735353041328,-500.0,9.341e-05,2]
[346902158,1735353041338,-500.0,9.342e-05,2]
[346902159,1735353041347,-641.78,9.342e-05,2]
[346902160,1735353041356,-623.51,9.342e-05,2]
[346902161,1735353041366,-500.0,9.342e-05,2]
[346902162,1735353041375,-533.30494053,9.342e-05,2]
[346902163,1735353041384,-503.76502586,9.342e-05,2]
[346902164,1735353041394,-500.0,9.342e-05,2]
[346902165,1735353041403,-505.78507309,9.342e-05,2]
[346902166,1735353041412,-500.0,9.342e-05,2]
[346902167,1735353041422,-500.0,9.613e-05,2]
[346902168,1735353041432,-500.0,9.613e-05,2]
[346902169,1735353041442,-500.0,9.613e-05,2]
[346902170,1735353041452,-500.0,9.613e-05,2]
[346902171,1735353041463,-500.0,9.613e-05,2]
[346902172,1735353041474,-500.0,9.613e-05,2]
[346902173,1735353041484,-500.0,9.613e-05,2]
[346902174,1735353041493,-523.37546391,9.613e-05,2]
[346902175,1735353041503,-500.0,9.613e-05,2]
[346902176,1735353041512,-500.0,9.613e-05,2]
[346902177,1735353041522,-273.76409912,9.613e-05,2]
[346902178,1735353041532,-500.0,9.613e-05,2]
[346902179,1735353041543,-500.0,9.613e-05,2]
[346902180,1735353041552,-460.75301975,9.613e-05,2]
[346902181,1735353041562,-396.27465692,9.613e-05,2]
[346902182,1735353041572,-500.0,9.613e-05,2]
[346902183,1735353041583,-501.25972199,9.613e-05,2]
[346902184,1735353041593,-265.52574435,9.614e-05,2]
[346902185,1735353041603,-500.0,9.614e-05,2]
[346902186,1735353041612,-500.0,9.614e-05,2]
[346902187,1735353041621,-500.0,9.614e-05,2]
[346902188,1735353041630,-500.0,9.614e-05,2]
[346902189,1735353041639,-500.0,9.614e-05,2]
[346902190,1735353041649,-500.0,9.614e-05,2]
[346902191,1735353041658,-500.0,9.614e-05,2]
[346902192,1735353041667,-500.0,9.614e-05,2]
[346902193,1735353041677,-500.0,9.614e-05,2]
[346902194,1735353041686,-500.0,9.614e-05,2]
[346902195,1735353041695,-500.0,9.614e-05,2]
[346902196,1735353041705,-500.0,9.614e-05,2]
[346902197,1735353041715,-151.614332,9.614e-05,2]
[346902198,1735353041724,-500.0,9.614e-05,2]
[346902199,1735353041733,-500.0,9.614e-05,2]
[346902200,1735353041742,-500.0,9.614e-05,2]
[346902201,1735353041751,-500.0,9.614e-05,2]
[346902202,1735353041760,-500.0,9.614e-05,2]
[346902203,1735353041770,-500.0,9.614e-05,2]
[346902204,1735353041779,-500.0,9.614e-05,2]
[346902205,1735353041789,-500.0,9.614e-05,2]
[346902206,1735353041797,-504.41496688,9.614e-05,2]
[346902207,1735353041807,-500.0,9.614e-05,2]
[346902208,1735353041816,-500.0,9.614e-05,2]
[346902209,1735353041825,-500.0,9.614e-05,2]
[346902210,1735353041838,-500.0,9.614e-05,2]
[346902211,1735353041848,-500.0,9.614e-05,2]
[346902212,1735353041857,-500.0,9.614e-05,2]
[346902213,1735353041866,-512.31465351,9.614e-05,2]
[346902214,1735353041877,-500.0,9.614e-05,2]
[346902215,1735353041887,-509.90282238,9.614e-05,2]
[346902216,1735353041897,-500.0,9.614e-05,2]
[346902217,1735353041908,-509.14618467,9.614e-05,2]
[346902218,1735353041918,-500.0,9.614e-05,2]
[346902219,1735353041927,-500.0,9.614e-05,2]
[346902220,1735353041936,-500.0,9.614e-05,2]
[346902221,1735353041947,-500.0,9.614e-05,2]
[346902222,1735353041959,-500.0,9.614e-05,2]
[346902223,1735353041970,-151.0,9.614e-05,2]
[346902224,1735353041979,-151.0,9.614e-05,2]
[346902225,1735353041991,-500.0,9.614e-05,2]
[346902226,1735353042000,-504.37007121,9.614e-05,2]
[346902227,1735353042009,-500.0,9.614e-05,2]
[346902228,1735353042021,-505.00593912,9.614e-05,2]
[346902229,1735353042033,-500.0,9.614e-05,2]
[346902230,1735353042042,-500.0,9.614e-05,2]
[346902231,1735353042052,-500.0,9.614e-05,2]
[346902232,1735353042061,-500.0,9.614e-05,2]
[346902233,1735353042072,-507.62686392,9.614e-05,2]
[346902234,1735353042083,-508.24610245,9.614e-05,2]
[346902235,1735353042094,-175.44,9.614e-05,2]
[346902236,1735353042104,-500.0,9.614e-05,2]
[346902237,1735353042114,-500.0,9.614e-05,2]
[346902238,1735353042124,-519.3982732,9.614e-05,2]
[346902239,1735353042134,-328.24009886,9.614e-05,2]
[346902240,1735353042144,-506.41716862,9.614e-05,2]
[346902241,1735353042153,-504.94294926,9.614e-05,2]
[346902242,1735353042163,-500.0,9.614e-05,2]
[346902243,1735353042173,-1571.11,9.614e-05,2]
[346902244,1735353042182,-500.0,9.614e-05,2]
[346902245,1735353042192,-503.98090757,9.614e-05,2]
[346902246,1735353042202,-500.0,9.614e-05,2]
[346902247,1735353042211,-500.0,9.614e-05,2]
[346902248,1735353042221,-500.0,9.614e-05,2]
[346902249,1735353042230,-500.0,9.614e-05,2]
[346902250,1735353042239,-500.0,9.614e-05,2]
[346902251,1735353042249,-500.0,9.614e-05,2]
[346902252,1735353042259,-500.0,9.614e-05,2]
[346902253,1735353042268,-500.0,9.614e-05,2]
[346902254,1735353042278,-500.0,9.614e-05,2]
[346902255,1735353042287,-500.0,9.614e-05,2]
[346902256,1735353042297,-500.0,9.614e-05,2]
[346902257,1735353042306,-500.0,9.614e-05,2]
[346902258,1735353042316,-500.0,9.614e-05,2]
[346902259,1735353042325,-500.0,9.614e-05,2]
[346902260,1735353042337,-500.0,9.614e-05,2]
[346902261,1735353042347,-500.0,9.614e-05,2]
[346902262,1735353042357,-207.1682218,9.614e-05,2]
[346902263,1735353042366,-500.0,9.614e-05,2]
[346902264,1735353042377,-500.0,9.615e-05,2]
[346902265,1735353042387,-500.0,9.615e-05,2]
[346902266,1735353042396,-500.0,9.616e-05,2]
[346902267,1735353042406,-502.65513291,9.616e-05,2]
[346902268,1735353042416,-507.96456851,9.616e-05,2]
[346902269,1735353042426,-501.0572629,9.616e-05,2]
[346902270,1735353042435,-500.0,9.616e-05,2]
[346902271,1735353042445,-500.0,9.616e-05,2]
[346902272,1735353042455,-500.0,9.616e-05,2]
[346902273,1735353042466,-500.0,9.616e-05,2]
[346902274,1735353042477,-539.89240436,9.616e-05,2]
[346902275,1735353042486,-500.0,9.616e-05,2]
[346902276,1735353042495,-500.0,9.616e-05,2]
[346902277,1735353042505,-500.0,9.616e-05,2]
[346902278,1735353042514,-500.0,9.616e-05,2]
[346902279,1735353042523,-500.0,9.616e-05,2]
[346902280,1735353042616,-500.0,9.616e-05,2]
[346902281,1735353042627,-500.0,9.616e-05,2]
[346902282,1735353042637,-500.0,9.616e-05,2]
[346902283,1735353042646,-500.0,9.616e-05,2]
[346902284,1735353042655,-502.00221143,9.616e-05,2]
[346902285,1735353042664,-500.0,9.616e-05,2]
[346902286,1735353042674,-578.6,9.616e-05,2]
[346902287,1735353042683,-500.0,9.616e-05,2]
[346902288,1735353042693,-500.0,9.616e-05,2]
[346902289,1735353042702,-500.0,9.616e-05,2]
[346902290,1735353042711,-500.0,9.616e-05,2]
[346902291,1735353042721,-500.0,9.616e-05,2]
[346902292,1735353042731,-584.0,9.616e-05,2]
[346902293,1735353042741,-500.0,9.616e-05,2]
[346902294,1735353042753,-500.0,9.616e-05,2]
[346902295,1735353042762,-500.0,9.616e-05,2]
[346902296,1735353042772,-500.0,9.616e-05,2]
[346902297,1735353042781,-500.0,9.616e-05,2]
[346902298,1735353042791,-500.0,9.616e-05,2]
[346902299,1735353042801,-500.0,9.616e-05,2]
[346902300,1735353042811,-500.0,9.616e-05,2]
[346902301,1735353042821,-500.0,9.616e-05,2]
[346902302,1735353042832,-500.0,9.616e-05,2]
[346902303,1735353042842,-500.0,9.616e-05,2]
[346902304,1735353042851,-500.0,9.616e-05,2]
[346902305,1735353042861,-161.87503698,9.616e-05,2]
[346902306,1735353042869,-500.0,9.616e-05,2]
[346902307,1735353042879,-500.0,9.616e-05,2]
[346902308,1735353042889,-500.0,9.616e-05,2]
[346902309,1735353042899,-500.0,9.616e-05,2]
[346902310,1735353042909,-500.0,9.616e-05,2]
[346902311,1735353042920,-500.0,9.616e-05,2]
[346902312,1735353042930,-500.0,9.616e-05,2]
[346902313,1735353042940,-500.0,9.616e-05,2]
[346902314,1735353042951,-511.07808261,9.616e-05,2]
[346902315,1735353042962,-500.0,9.616e-05,2]
[346902316,1735353042971,-500.0,9.616e-05,2]
[346902317,1735353042981,-511.37195923,9.616e-05,2]
[346902318,1735353042991,-500.0,9.616e-05,2]
[346902319,1735353043003,-480.0,9.616e-05,2]
[346902320,1735353043014,-500.0,9.616e-05,2]
[346902321,1735353043023,-504.1835421,9.616e-05,2]
[346902322,1735353043036,-501.82396331,9.616e-05,2]
[346902323,1735353043046,-508.66383516,9.616e-05,2]
[346902324,1735353043055,-500.0,9.616e-05,2]
[346902325,1735353043067,-500.0,9.616e-05,2]
[346902326,1735353043076,-500.0,9.616e-05,2]
[346902327,1735353043085,-500.0,9.616e-05,2]
[346902328,1735353043094,-500.0,9.616e-05,2]
[346902329,1735353043103,-500.0,9.616e-05,2]
[346902330,1735353043113,-502.59651371,9.616e-05,2]
[346902331,1735353043122,-512.12551779,9.616e-05,2]
[346902332,1735353043131,-506.74133623,9.616e-05,2]
[346902333,1735353043140,-500.0,9.616e-05,2]
[346902334,1735353043150,-500.0,9.616e-05,2]
[346902335,1735353043159,-500.0,9.616e-05,2]
[346902337,1735353043168,-500.0,9.616e-05,2]
[346902339,1735353043178,-500.0,9.616e-05,2]
[346902341,1735353043187,-500.0,9.616e-05,2]
[346902343,1735353043196,-500.0,9.616e-05,2]
[346902345,1735353043205,-500.0,9.616e-05,2]
[346902347,1735353043215,-509.14532263,9.616e-05,2]
[346902349,1735353043224,-500.0,9.616e-05,2]
[346902351,1735353043233,-500.0,9.616e-05,2]
[346902352,1735353043243,-500.0,9.616e-05,2]
[346902353,1735353043252,-500.0,9.616e-05,2]
[346902354,1735353043261,-500.0,9.616e-05,2]
[346902355,1735353043271,-500.0,9.616e-05,2]
[346902356,1735353043280,-500.0,9.616e-05,2]
[346902357,1735353043290,-512.88403682,9.616e-05,2]
[346902358,1735353043299,-499.7,9.616e-05,2]
[346902359,1735353043309,-506.5980631,9.616e-05,2]
[346902360,1735353043318,-506.65888942,9.616e-05,2]
[346902361,1735353043327,-500.0,9.616e-05,2]
[346902362,1735353043336,-500.0,9.616e-05,2]
[346902363,1735353043346,-500.0,9.616e-05,2]
[346902364,1735353043355,-503.38985513,9.616e-05,2]
[346902365,1735353043364,-319.263384,9.616e-05,2]
[346902366,1735353043375,-505.36959961,9.616e-05,2]
[346902367,1735353043384,-503.09426609,9.616e-05,2]
[346902368,1735353043394,-500.78065708,9.616e-05,2]
[346902369,1735353043403,-503.46603105,9.616e-05,2]
[346902370,1735353043413,-500.0,9.616e-05,2]
[346902371,1735353043422,-581.20690511,9.616e-05,2]
[346902372,1735353043431,-500.0,9.616e-05,2]
[346902373,1735353043441,-508.0779143,9.616e-05,2]
[346902374,1735353043450,-506.5420369,9.616e-05,2]
[346902375,1735353043459,-507.16830807,9.616e-05,2]
[346902376,1735353043468,-500.0,9.616e-05,2]
[346902377,1735353043478,-504.38685553,9.616e-05,2]
[346902378,1735353043487,-151.0,9.616e-05,2]
[346902379,1735353043496,-151.0,9.616e-05,2]
[346902380,1735353043505,-510.93429908,9.616e-05,2]
[346902381,1735353043515,-506.07703344,9.616e-05,2]
[346902382,1735353043524,-500.0,9.616e-05,2]
[346902383,1735353043534,-506.36520608,9.616e-05,2]
[346902384,1735353043543,-506.76402994,9.616e-05,2]
[346902385,1735353043552,-345.39264673,9.616e-05,2]
[346902386,1735353043561,-485.0,9.616e-05,2]
[346902387,1735353043570,-500.0,9.616e-05,2]
[346902388,1735353043579,-623.51,9.616e-05,2]
[346902389,1735353043591,-500.0,9.616e-05,2]
[346902390,1735353043602,-500.0,9.617e-05,2]
[346902391,1735353043614,-509.41553982,9.617e-05,2]
[346902392,1735353043623,-272.95921598,9.617e-05,2]
[346902393,1735353043632,-1000.0,9.617e-05,2]
[346902394,1735353043643,-395.38974656,9.617e-05,2]
[346902395,1735353043653,-500.0,9.617e-05,2]
[346902396,1735353043664,-161.14435402,9.727e-05,2]
[346902397,1735353043673,-512.38662564,9.727e-05,2]
[346902398,1735353043682,-500.0,9.887e-05,2]
[346902399,1735353043691,-500.0,9.887e-05,2]
[346902400,1735353043701,-500.0,9.887e-05,2]
[346902401,1735353043712,-500.0,9.887e-05,2]
[346902402,1735353043722,-500.0,9.887e-05,2]
[346902403,1735353043732,-500.0,9.887e-05,2]
[346902404,1735353043743,-500.0,9.887e-05,2]
[346902405,1735353043752,-500.0,9.887e-05,2]
[346902406,1735353043763,-500.0,9.887e-05,2]
[346902407,1735353043773,-500.0,9.887e-05,2]
[346902408,1735353043783,-504.09282564,9.887e-05,2]
[346902409,1735353043795,-163.57,9.887e-05,2]
[346902410,1735353043805,-500.0,9.887e-05,2]
[346902411,1735353043814,-500.0,9.887e-05,2]
[346902412,1735353043823,-545.07,9.887e-05,2]
[346902413,1735353043833,-185.07624149,9.887e-05,2]
[346902414,1735353043842,-500.0,9.887e-05,2]
[346902415,1735353043851,-500.0,9.887e-05,2]
[346902416,1735353043860,-500.0,9.888e-05,2]
[346902417,1735353043871,-500.0,9.888e-05,2]
[346902418,1735353043881,-500.0,9.888e-05,2]
[346902419,1735353043892,-500.0,9.888e-05,2]
[346902420,1735353043902,-500.0,9.888e-05,2]